bitfinex/quotes_ETHUSD_20250222
["timestamp","ask_amount","ask_price","bid_price","bid_amount"]
[1740217516217,3.68332,2715.0,2714.4,3.76894357]
[1740217516218,3.68339,2714.9,2714.4,3.76894357]
[1740217516422,7.36612,2715.2,2714.8,0.0502]
[1740217516655,3.68304,2715.2,2714.8,0.0502]
[1740217517034,3.68292,2715.3,2714.8,0.0502]
[1740217517950,3.68306,2715.2,2714.8,0.0502]
[1740217519656,7.36585,2715.3,2714.8,0.0502]
[1740217519836,3.68292,2715.3,2714.8,0.0502]
[1740217520039,3.68292,2715.3,2714.9,0.05816822]
[1740217522820,0.8207,2715.4,2715.0,3.49994357]
[1740217522821,4.5034,2715.4,2715.0,3.49994357]
[1740217523025,3.68273,2715.4,2715.1,0.05813147]
[1740217523225,3.68264,2715.5,2715.1,0.05813147]
[1740217524063,3.6827,2715.4,2715.1,0.05813147]
[1740217524519,0.787,2715.7,2715.1,0.05813147]
[1740217524724,3.68296,2715.2,2715.1,0.05813147]
[1740217524954,7.36586,2715.3,2715.1,0.05813147]
[1740217525128,3.68296,2715.2,2715.1,0.05813147]
[1740217525725,3.68315,2715.1,2714.8,0.3192]
[1740217526659,3.68249,2715.6,2714.8,0.3192]
[1740217526660,3.68266,2715.5,2714.9,4.23336]
[1740217526874,3.68271,2715.4,2714.9,4.23336]
[1740217527471,3.68271,2715.4,2714.9,0.55]
[1740217528654,3.68284,2715.3,2714.9,0.55]
[1740217529276,7.36531,2715.5,2714.9,4.23337]
[1740217529646,3.6827,2715.4,2714.9,4.23337]
[1740217530774,3.68265,2715.5,2714.9,4.23337]
[1740217530983,7.36531,2715.5,2714.9,4.23337]
[1740217531641,3.68269,2715.4,2714.9,0.55]
[1740217532609,3.68286,2715.3,2714.9,0.55]
[1740217533081,3.68265,2715.5,2714.9,4.23337]
[1740217533650,3.68234,2715.7,2715.2,3.73315]
[1740217533880,7.36471,2715.7,2715.2,0.0502]
[1740217534049,3.6825,2715.6,2715.2,0.0502]
[1740217534380,3.68234,2715.7,2715.2,0.0502]
[1740217534576,3.68243,2715.6,2715.2,0.0502]
[1740217535082,3.68243,2715.6,2715.3,0.11469998]
[1740217537792,3.68257,2715.5,2715.3,0.11469998]
[1740217538756,3.68234,2715.7,2715.3,0.11469998]
[1740217538757,3.68243,2715.6,2715.3,0.11469998]
[1740217539358,3.68234,2715.7,2715.3,0.11469998]
[1740217539560,3.6826,2715.5,2715.3,0.11469998]
[1740217540679,3.6826,2715.5,2715.4,1.69530013]
[1740217541088,3.6826,2715.5,2715.4,1.81000011]
[1740217542183,3.68244,2715.6,2715.4,1.81000011]
[1740217542766,3.68234,2715.7,2715.4,1.81000011]
[1740217543074,3.68256,2715.5,2715.4,1.81000011]
[1740217546699,4.419059,2715.5,2715.4,0.11469998]
[1740217546907,5.199259,2715.5,2715.4,0.11469998]
[1740217547087,3.68269,2715.4,2715.3,1.69530013]
[1740217547463,3.68269,2715.4,2715.3,0.10900627]
[1740217547690,5.199259,2715.5,2715.1,1.69530013]
[1740217547691,3.68296,2715.2,2715.1,1.69530013]
[1740217550302,3.68296,2715.2,2715.1,1.80316869]
[1740217550998,3.68283,2715.3,2715.1,1.80316869]
[1740217551464,3.68296,2715.2,2715.1,1.80316869]
[1740217552301,3.68296,2715.2,2715.1,2.14420297]
[1740217552495,3.68283,2715.3,2715.1,2.19440297]
[1740217553019,3.68296,2715.2,2715.1,2.19440297]
[1740217553501,3.68296,2715.2,2715.1,1.85336869]
[1740217553694,3.68296,2715.2,2715.1,1.80316869]
[1740217559402,3.68296,2715.2,2715.1,2.14410014]
[1740217561406,3.68296,2715.2,2715.1,1.80316869]
[1740217564782,3.68296,2715.2,2715.1,2.14415608]
[1740217565900,3.68263,2715.5,2715.2,0.0502]
[1740217566098,3.68263,2715.5,2715.4,1.69530013]
[1740217566783,3.68263,2715.5,2715.4,1.80315644]
[1740217571019,3.68243,2715.6,2715.4,1.80315644]
[1740217571224,3.68256,2715.5,2715.4,1.80315644]
[1740217573041,3.68243,2715.6,2715.4,1.80315644]
[1740217573253,7.36495,2715.6,2715.4,1.80315644]
[1740217574695,3.68243,2715.6,2715.4,1.80315644]
[1740217576654,3.68243,2715.6,2715.4,1.85264481]
[1740217576867,0.7818,2716.0,2715.4,1.85264481]
[1740217577151,3.68242,2715.7,2715.4,0.15734468]
[1740217577354,3.68157,2716.3,2715.5,4.28268]
[1740217577533,3.68197,2716.0,2715.6,0.10766038]
[1740217577719,3.68197,2716.0,2715.7,0.269]
[1740217577920,3.68197,2716.0,2715.8,0.10741545]
[1740217578226,3.68202,2715.9,2715.7,0.269]
[1740217578547,3.68197,2716.0,2715.7,0.60989675]
[1740217578754,3.68202,2715.9,2715.8,1.69530013]
[1740217580221,3.68202,2715.9,2715.8,1.80214469]
[1740217581939,3.68202,2715.9,2715.8,0.10684456]
[1740217582156,3.68202,2715.9,2715.7,0.269]
[1740217582340,3.68215,2715.8,2715.6,1.69530013]
[1740217582540,3.68229,2715.7,2715.6,1.69530013]
[1740217585386,3.68216,2715.8,2715.6,1.69530013]
[1740217585592,4.48696,2716.0,2715.6,1.69530013]
[1740217585891,4.48696,2716.0,2715.9,1.69530013]
[1740217588658,3.68256,2715.5,2715.4,0.04948837]
[1740217588870,3.68243,2715.6,2715.4,1.7447885]
[1740217589051,3.68256,2715.5,2715.4,1.7447885]
[1740217589464,3.68222,2715.8,2715.4,1.7949885]
[1740217589672,3.68222,2715.8,2715.6,1.69530013]
[1740217592390,7.36446,2715.8,2715.6,1.69530013]
[1740217592594,3.68222,2715.8,2715.6,1.69530013]
[1740217593391,3.68229,2715.7,2715.6,1.69530013]
[1740217593569,3.68222,2715.8,2715.6,1.69530013]
[1740217595201,3.68222,2715.8,2715.7,0.10296752]
[1740217598875,3.68202,2715.9,2715.7,0.10296752]
[1740217599285,3.68193,2716.0,2715.8,1.69530013]
[1740217599484,3.68193,2716.0,2715.8,1.74550013]
[1740217599876,3.68193,2716.0,2715.9,0.10296752]
[1740217601112,4.47993,2716.0,2715.9,0.10296752]
[1740217601473,4.47993,2716.0,2715.4,1.7949885]
[1740217601474,3.68217,2715.8,2715.5,0.55]
[1740217601874,7.36441,2715.8,2715.6,0.10296752]
[1740217602175,3.68217,2715.8,2715.6,0.10296752]
[1740217603271,3.68229,2715.7,2715.6,0.10296752]
[1740217603469,3.68213,2715.9,2715.6,0.10296752]
[1740217603675,3.68219,2715.8,2715.5,0.55]
[1740217603893,3.68219,2715.8,2715.7,0.10296752]
[1740217604095,3.68219,2715.8,2715.5,0.55]
[1740217604374,3.68219,2715.8,2715.7,0.10291856]
[1740217604569,3.68219,2715.8,2715.5,0.55]
[1740217605126,3.68219,2715.8,2715.6,1.79821869]
[1740217605276,4.47996,2716.0,2715.6,1.79821869]
[1740217605477,3.68204,2715.9,2715.6,1.79821869]
[1740217607357,3.68216,2715.8,2715.6,1.79821869]
[1740217607516,3.68216,2715.8,2715.7,0.0502]
[1740217607727,3.68196,2716.0,2715.7,0.0502]
[1740217608060,3.68203,2715.9,2715.7,0.15311856]
[1740217608354,3.68196,2716.0,2715.7,0.15311856]
[1740217608897,0.7718,2716.3,2715.8,1.69530013]
[1740217609301,3.68161,2716.2,2715.8,1.69530013]
[1740217609522,5.51777047,2717.0,2716.0,1.69530013]
[1740217609742,3.68124,2716.5,2716.2,1.69530013]
[1740217610334,3.68124,2716.5,2716.3,0.10224519]
[1740217610533,3.68124,2716.5,2716.2,1.69530013]
[1740217610732,3.68135,2716.4,2716.2,1.69530013]
[1740217611925,3.6812,2716.5,2716.2,1.69530013]
[1740217612953,3.68134,2716.4,2716.2,1.69530013]
[1740217613639,0.7718,2716.6,2716.0,1.69530013]
[1740217613842,3.68171,2716.2,2716.0,1.69530013]
[1740217614162,3.68148,2716.3,2716.0,1.69530013]
[1740217618275,4.45297,2716.6,2715.9,0.3192]
[1740217618437,4.45297,2716.6,2716.4,1.69530013]
[1740217618639,3.6812,2716.5,2716.2,1.69530013]
[1740217618837,3.68102,2716.7,2716.4,1.69530013]
[1740217619441,3.68111,2716.6,2716.4,1.69530013]
[1740217620048,0.7896,2716.8,2716.4,1.69530013]
[1740217620263,3.68074,2716.9,2716.6,1.69530013]
[1740217620575,7.36151,2716.9,2716.6,1.69530013]
[1740217620748,3.68074,2716.9,2716.6,1.69530013]
[1740217621170,0.8006,2717.0,2716.6,1.69530013]
[1740217621474,3.6805,2717.1,2716.7,0.0502]
[1740217621663,3.68054,2717.0,2716.7,0.0502]
[1740217622372,4.12861,2717.1,2716.7,0.0502]
[1740217622739,3.68067,2716.9,2716.7,0.0502]
[1740217623140,3.68067,2716.9,2716.5,0.0502]
[1740217624257,3.68067,2716.9,2716.6,0.27138121]
[1740217625041,3.68067,2716.9,2716.7,0.1010667]
[1740217625877,3.68076,2716.9,2716.7,0.1010667]
[1740217627464,7.36095,2717.1,2716.7,0.1010667]
[1740217627671,3.68047,2717.1,2716.7,0.1010667]
[1740217629277,4.46601,2717.7,2717.1,3.7305]
[1740217629479,4.46601,2717.7,2717.1,0.0502]
[1740217629680,3.67987,2717.5,2717.2,0.10030816]
[1740217629985,4.46601,2717.7,2717.2,0.10030816]
[1740217629986,3.67975,2717.6,2717.2,0.10030816]
[1740217630168,4.46601,2717.7,2717.2,0.10030816]
[1740217630478,3.67995,2717.5,2717.2,0.10030816]
[1740217631977,4.46652,2717.3,2717.2,0.10030816]
[1740217632475,4.46652,2717.3,2717.2,0.098967]
[1740217632476,4.46665,2717.3,2717.2,0.098967]
[1740217632883,3.68073,2716.9,2716.7,5.37]
[1740217633079,3.6809,2716.8,2716.6,0.269]
[1740217633259,3.68047,2717.1,2716.6,0.269]
[1740217633455,4.46656,2717.3,2716.6,0.269]
[1740217633661,3.68081,2716.8,2716.6,0.269]
[1740217633859,3.68107,2716.6,2716.5,0.0502]
[1740217634065,3.68107,2716.6,2716.4,3.269]
[1740217634259,3.68107,2716.6,2716.4,0.269]
[1740217634462,3.6812,2716.5,2716.4,0.269]
[1740217634665,3.68107,2716.6,2716.4,0.269]
[1740217634882,4.46707,2716.9,2716.4,0.269]
[1740217635269,3.68084,2716.8,2716.4,0.269]
[1740217635591,0.7864,2716.9,2716.4,0.269]
[1740217635769,3.68134,2716.4,2716.3,0.3192]
[1740217636091,3.6812,2716.5,2716.2,5.37]
[1740217636260,3.68156,2716.3,2715.9,0.269]
[1740217636880,4.46764,2716.5,2715.9,3.76228178]
[1740217637051,6.84777047,2717.2,2716.1,0.55]
[1740217637257,3.68094,2716.7,2716.1,0.55]
[1740217637678,3.68121,2716.5,2716.1,0.55]
[1740217638387,3.68096,2716.7,2716.1,0.55]
[1740217638563,3.68096,2716.7,2716.1,4.23173]
[1740217638776,4.46708,2716.9,2716.3,0.0502]
[1740217638961,3.68088,2716.8,2716.3,0.0502]
[1740217639770,4.98226571,2716.9,2716.3,0.0502]
[1740217639964,3.68097,2716.7,2716.3,0.0502]
[1740217640170,3.68097,2716.7,2716.4,0.0928679]
[1740217642805,7.36202,2716.7,2716.4,0.0928679]
[1740217643001,3.6811,2716.6,2716.4,0.0928679]
[1740217643388,3.6811,2716.6,2716.1,0.6002]
[1740217643596,3.68135,2716.4,2716.1,0.6002]
[1740217643902,3.68135,2716.4,2716.2,0.269]
[1740217644877,3.6811,2716.6,2716.2,0.269]
[1740217645083,3.68128,2716.5,2716.1,0.55]
[1740217647511,7.3623,2716.6,2716.1,0.55]
[1740217647708,3.6811,2716.6,2716.1,0.55]
[1740217647909,3.68083,2716.8,2716.3,0.0502]
[1740217649206,3.68083,2716.8,2716.3,3.73159]
[1740217649709,7.36175,2716.8,2716.3,0.0502]
[1740217649909,3.68083,2716.8,2716.3,0.0502]
[1740217650290,0.7589,2716.9,2716.4,3.68126]
[1740217650493,6.19803047,2717.2,2716.4,3.68126]
[1740217650494,0.7589,2717.1,2716.7,0.0502]
[1740217651182,7.36125,2717.0,2716.7,0.0502]
[1740217651710,3.68088,2716.8,2716.4,0.6002]
[1740217652087,3.6806,2717.0,2716.4,0.6002]
[1740217652809,0.7589,2717.1,2716.6,3.68094]
[1740217653015,0.7589,2717.1,2716.7,3.68086]
[1740217653530,6.95672047,2717.4,2716.8,3.73088]
[1740217653707,3.67972,2717.6,2716.9,3.68059]
[1740217654013,3.67992,2717.5,2716.9,3.68059]
[1740217654404,3.67992,2717.5,2716.9,7.44287178]
[1740217655005,3.68011,2717.4,2716.9,3.76228178]
[1740217655180,3.68015,2717.3,2717.0,0.09327119]
[1740217656223,3.68026,2717.2,2717.0,0.09327119]
[1740217656902,4.43905,2717.3,2717.0,0.09327119]
[1740217657103,3.67991,2717.5,2717.0,0.09327119]
[1740217657314,4.43881,2717.5,2717.0,0.09327119]
[1740217657616,3.68005,2717.4,2717.0,0.09327119]
[1740217657819,3.68012,2717.3,2717.0,0.09327119]
[1740217658024,4.43881,2717.5,2717.0,0.09327119]
[1740217658246,8.11875,2717.5,2717.0,0.09327119]
[1740217658524,3.68002,2717.4,2717.0,0.09327119]
[1740217658922,4.43881,2717.5,2717.0,0.09327119]
[1740217659215,3.67999,2717.4,2717.0,0.09327119]
[1740217659983,3.68014,2717.3,2717.0,0.09327119]
[1740217660190,3.68029,2717.2,2717.0,0.09327119]
[1740217660389,3.68039,2717.1,2717.0,0.09327119]
[1740217662809,4.48889,2717.1,2717.0,0.09327119]
[1740217662991,4.937779,2717.1,2717.0,0.09327119]
[1740217663193,3.68074,2716.9,2716.7,0.27172291]
[1740217663392,3.6808,2716.8,2716.7,0.27172291]
[1740217663585,3.68074,2716.9,2716.5,0.0502]
[1740217664823,3.68074,2716.9,2716.5,0.32210155]
[1740217666515,3.68084,2716.8,2716.5,0.32210155]
[1740217667230,3.68074,2716.9,2716.5,0.32210155]
[1740217667731,3.68101,2716.7,2716.5,0.0502]
[1740217667902,3.68101,2716.7,2716.4,4.31228178]
[1740217668632,3.68101,2716.7,2716.4,3.76228178]
[1740217669396,3.68101,2716.7,2716.3,0.6105895]
[1740217669597,3.68103,2716.7,2716.3,0.3192]
[1740217669796,3.68103,2716.7,2716.3,0.8795895]
[1740217670327,3.68073,2716.9,2716.4,0.08264324]
[1740217670635,7.3615,2716.9,2716.4,0.64303274]
[1740217670928,3.68082,2716.8,2716.4,0.64303274]
[1740217671930,3.68073,2716.9,2716.4,0.64303274]
[1740217672099,3.68094,2716.7,2716.4,0.64303274]
[1740217672832,3.68094,2716.7,2716.4,0.08264324]
[1740217673338,3.68083,2716.8,2716.4,0.08264324]
[1740217673632,3.68101,2716.7,2716.4,0.08264324]
[1740217674951,3.68083,2716.8,2716.4,0.08264324]
[1740217675451,3.68068,2716.9,2716.4,0.64303274]
[1740217675957,3.68081,2716.8,2716.4,0.64303274]
[1740217676499,3.68081,2716.8,2716.4,0.91507842]
[1740217677326,3.68081,2716.8,2716.4,0.64303274]
[1740217677531,3.68081,2716.8,2716.4,0.9154059]
[1740217678033,3.68066,2716.9,2716.4,0.9154059]
[1740217678240,3.68066,2716.9,2716.4,4.0363364]
[1740217679449,3.68066,2716.9,2716.5,0.27237316]
[1740217679930,3.68066,2716.9,2716.6,0.08264324]
[1740217680937,3.6808,2716.8,2716.6,0.08264324]
[1740217682934,3.68097,2716.7,2716.4,0.27237316]
[1740217683340,3.68108,2716.6,2716.4,0.27237316]
[1740217683503,3.6812,2716.5,2716.4,0.27237316]
[1740217684128,3.6812,2716.5,2716.3,0.54037316]
[1740217685145,3.6812,2716.5,2716.4,0.08309488]
[1740217686828,3.68147,2716.3,2716.2,0.27237316]
[1740217688039,4.44537,2716.3,2716.2,0.27237316]
[1740217688243,4.44537,2716.3,2716.1,0.27237316]
[1740217689352,0.7639,2716.3,2716.1,0.27237316]
[1740217689525,3.68134,2716.4,2716.1,0.27237316]
[1740217689850,3.68134,2716.4,2715.9,0.32257316]
[1740217690052,3.68134,2716.4,2715.9,0.88296266]
[1740217690548,3.68134,2716.4,2716.0,0.5603895]
[1740217692742,3.68156,2716.3,2715.9,0.0502]
[1740217693465,3.68134,2716.4,2715.9,0.0502]
[1740217694070,3.68148,2716.3,2715.9,0.0502]
[1740217695370,3.68163,2716.2,2715.9,0.27255951]
[1740217695523,3.68175,2716.1,2715.9,0.27255951]
[1740217696128,4.44578,2716.0,2715.9,0.27255951]
[1740217696759,0.7639,2716.0,2715.7,0.268]
[1740217697247,3.68175,2716.1,2715.7,0.268]
[1740217697446,3.68175,2716.1,2715.7,0.8785895]
[1740217698480,3.68149,2716.3,2715.8,7.44795783]
[1740217698685,3.68149,2716.3,2715.8,3.76588783]
[1740217699760,3.68149,2716.3,2715.8,3.49328178]
[1740217700265,3.68149,2716.3,2715.9,0.07801079]
[1740217701667,7.36306,2716.3,2715.9,0.07801079]
[1740217701965,3.68149,2716.3,2715.9,0.07801079]
[1740217702670,3.68185,2716.1,2715.9,0.07801079]
[1740217704169,3.68156,2716.3,2715.9,0.07801079]
[1740217704369,3.68167,2716.2,2715.9,0.07801079]
[1740217705973,3.68186,2716.1,2715.9,0.07801079]
[1740217707753,3.68156,2716.3,2715.9,0.07801079]
[1740217708569,4.494248,2716.3,2715.9,0.07801079]
[1740217708776,3.68165,2716.2,2715.9,0.07801079]
[1740217710551,3.68165,2716.2,2715.9,1.77258121]
[1740217712171,3.68186,2716.1,2715.9,1.77258121]
[1740217715179,3.68165,2716.2,2715.9,1.77258121]
[1740217715881,7.36335,2716.2,2715.9,1.77258121]
[1740217716683,3.68165,2716.2,2715.9,1.77258121]
[1740217716979,3.68161,2716.2,2716.1,1.69457042]
[1740217717377,6.97294047,2716.6,2716.1,1.82339122]
[1740217717584,7.67023452,2716.6,2716.1,1.82339122]
[1740217718291,2.51777047,2716.6,2716.3,1.69457042]
[1740217718585,2.51777047,2716.6,2716.4,3.7599286]
[1740217719081,2.51777047,2716.6,2716.5,3.6812]
[1740217719280,2.51777047,2716.6,2716.5,3.7314]
[1740217719485,2.51777047,2716.6,2716.5,0.0502]
[1740217719784,2.51777047,2716.6,2716.3,0.0502]
[1740217719985,2.51777047,2716.6,2716.5,0.0786086]
[1740217720190,2.51777047,2716.6,2716.3,0.0502]
[1740217720381,2.51777047,2716.6,2716.5,0.0786086]
[1740217720692,2.51777047,2716.6,2716.3,0.0502]
[1740217721162,2.51777047,2716.6,2716.4,0.0786086]
[1740217723079,3.68095,2716.7,2716.4,0.0786086]
[1740217724157,3.68107,2716.6,2716.4,0.0786086]
[1740217725298,7.36222,2716.6,2716.4,0.0786086]
[1740217725482,3.68107,2716.6,2716.4,0.0786086]
[1740217726071,7.36223,2716.6,2716.4,0.0786086]
[1740217726594,3.6812,2716.5,2716.4,0.0786086]
[1740217726761,4.454,2716.5,2716.4,0.0786086]
[1740217726956,3.68164,2716.2,2715.8,6.10047133]
[1740217727169,3.68138,2716.4,2715.8,6.10047133]
[1740217727399,3.68138,2716.4,2715.8,5.37]
[1740217727697,3.68138,2716.4,2715.8,9.05203]
[1740217728286,3.68138,2716.4,2715.9,0.27258287]
[1740217728497,0.7728,2716.3,2715.9,0.27258287]
[1740217728677,4.45468,2716.0,2715.9,0.27258287]
[1740217729496,0.7728,2716.0,2715.9,0.27258287]
[1740217729799,0.7728,2716.0,2715.5,3.68255]
[1740217730170,0.7728,2716.0,2715.6,0.05943085]
[1740217730513,4.45476,2716.0,2715.4,4.3486868]
[1740217730672,4.45476,2716.0,2715.4,3.78235837]
[1740217730860,3.68206,2715.9,2715.5,0.05943085]
[1740217731693,3.68219,2715.8,2715.5,0.05943085]
[1740217731894,0.7728,2716.5,2715.9,3.68192]
[1740217732100,3.29057047,2716.7,2716.1,3.68163]
[1740217732264,3.29057047,2716.7,2716.2,3.73172]
[1740217732461,4.45563,2715.3,2715.2,0.43642757]
[1740217732769,7.901193,2715.3,2715.2,7.57e-06]
[1740217733097,4.45617,2714.9,2714.8,0.56632843]
[1740217734194,3.68371,2714.7,2714.0,0.0502]
[1740217734395,3.68404,2714.5,2714.0,0.0502]
[1740217735591,3.68371,2714.7,2714.0,3.73476]
[1740217735792,3.68371,2714.7,2714.0,0.0502]
[1740217736090,3.68378,2714.6,2714.0,0.0502]
[1740217736501,3.68392,2714.5,2714.0,0.0502]
[1740217736704,3.68365,2714.7,2714.0,0.0502]
[1740217737103,3.68379,2714.6,2714.0,0.0502]
[1740217737272,3.68359,2714.8,2714.0,3.73477]
[1740217737473,4.74934505,2714.8,2714.0,3.73477]
[1740217737725,3.68368,2714.7,2714.0,3.73479]
[1740217739405,3.68368,2714.7,2714.1,3.68445]
[1740217739573,3.6836,2714.8,2714.2,3.6843]
[1740217740010,3.6836,2714.8,2714.3,0.04150904]
[1740217740516,3.6836,2714.8,2714.2,3.6843]
[1740217740995,3.6836,2714.8,2714.3,0.04150904]
[1740217741383,3.68365,2714.7,2714.1,3.68436]
[1740217741695,1.06574505,2714.8,2714.4,0.04150904]
[1740217741883,4.45619,2714.9,2714.2,7.36845]
[1740217742082,3.68365,2714.7,2714.5,0.04150904]
[1740217742282,3.68365,2714.7,2714.1,3.68441]
[1740217742497,3.68365,2714.7,2714.2,0.55]
[1740217742880,3.68365,2714.7,2714.3,0.04150904]
[1740217743185,3.68365,2714.7,2714.2,0.55]
[1740217743383,4.39672167,2714.7,2714.4,0.04150904]
[1740217743602,3.6839,2714.6,2713.9,3.73486]
[1740217743783,4.39672167,2714.7,2714.5,0.04150904]
[1740217744000,3.68378,2714.6,2714.0,3.68451]
[1740217744981,7.36769,2714.6,2714.0,3.68451]
[1740217745182,3.68378,2714.6,2714.1,0.04150904]
[1740217745794,3.68378,2714.6,2714.1,3.72594904]
[1740217746683,0.71307167,2714.7,2714.1,3.72590904]
[1740217747517,0.8087,2714.9,2714.4,3.68401]
[1740217747718,4.4921,2714.9,2714.4,3.68401]
[1740217747922,7.3671,2714.8,2714.5,0.04150904]
[1740217748219,7.3671,2714.8,2714.3,0.3192]
[1740217748533,4.75286705,2714.8,2714.3,0.3192]
[1740217748710,4.75286705,2714.8,2714.4,0.04143579]
[1740217750902,3.68351,2714.8,2714.4,0.04143579]
[1740217752827,3.68378,2714.6,2714.4,0.04143579]
[1740217753197,3.68387,2714.6,2714.0,4.00368]
[1740217753695,3.68387,2714.6,2714.1,0.04354613]
[1740217754711,7.36778,2714.6,2714.1,0.04354613]
[1740217754905,4.420648,2714.6,2714.1,0.04354613]
[1740217755233,4.48162,2714.5,2714.1,0.04354613]
[1740217755428,3.68406,2714.4,2714.1,0.04354613]
[1740217756533,3.68422,2714.3,2714.1,0.04354613]
[1740217756834,3.68422,2714.3,2713.8,0.0502]
[1740217757012,3.68422,2714.3,2714.2,0.04245277]
[1740217757330,3.68422,2714.3,2713.8,0.0502]
[1740217757331,4.500818,2714.3,2713.8,0.0502]
[1740217757630,0.816598,2714.3,2713.8,0.0502]
[1740217757835,0.816598,2714.3,2713.9,0.04245277]
[1740217758135,4.500868,2714.3,2713.9,0.04245277]
[1740217758435,3.68427,2714.3,2713.9,0.04245277]
[1740217758628,3.68448,2714.1,2713.9,0.04245277]
[1740217758827,3.68448,2714.1,2713.6,0.0502]
[1740217759030,3.68427,2714.3,2714.0,0.04245277]
[1740217759234,3.68433,2714.2,2713.6,3.7353]
[1740217759410,3.68433,2714.2,2714.1,0.04245277]
[1740217759939,3.68433,2714.2,2713.6,4.00768185]
[1740217760117,3.68433,2714.2,2713.7,0.04272124]
[1740217761213,4.132467,2714.3,2713.7,3.72771124]
[1740217762462,0.7977,2714.5,2713.9,3.68472]
[1740217762649,0.7977,2714.5,2714.1,3.68442]
[1740217763143,2.51777047,2714.6,2714.2,0.04153959]
[1740217763544,2.51777047,2714.6,2714.2,3.72573959]
[1740217763922,2.51777047,2714.6,2714.3,3.68418]
[1740217764119,3.21754952,2714.6,2714.0,0.32354238]
[1740217764443,6.20165047,2714.6,2714.1,0.04153959]
[1740217764743,4.48027,2714.7,2714.1,3.72597959]
[1740217765045,3.68381,2714.6,2714.1,3.99932197]
[1740217765966,3.68381,2714.6,2714.1,3.72597959]
[1740217768554,0.7965,2714.7,2714.3,3.68406]
[1740217768854,4.45359,2714.9,2714.4,0.0502]
[1740217769066,0.69713605,2714.8,2714.4,3.77570959]
[1740217769266,0.7702,2714.9,2714.4,3.77570959]
[1740217769858,0.7702,2714.9,2714.4,7.45969959]
[1740217770031,0.7702,2714.9,2714.4,7.45964959]
[1740217770633,0.7702,2714.9,2714.4,3.77567959]
[1740217771022,0.7702,2714.9,2714.5,3.68387]
[1740217771534,0.7702,2714.9,2714.6,0.04153959]
[1740217772345,0.7702,2714.9,2714.4,3.73414]
[1740217772346,2.51777047,2715.0,2714.7,3.68364]
[1740217772545,0.7702,2715.2,2714.7,3.68364]
[1740217772745,4.45318,2715.2,2714.8,0.04153959]
[1740217773056,4.9430543,2715.2,2714.8,0.04153959]
[1740217773263,4.9430543,2715.2,2714.6,3.68377]
[1740217773426,4.9430543,2715.2,2714.9,0.0410883]
[1740217773627,4.9430543,2715.2,2714.6,3.68377]
[1740217773947,4.9430543,2715.2,2715.0,0.0410883]
[1740217774125,0.49430543,2715.1,2714.6,3.68377]
[1740217774323,4.9430543,2715.2,2714.6,3.68377]
[1740217774759,4.9430543,2715.2,2714.7,3.68362]
[1740217775059,1.2600743,2715.2,2714.8,3.7245683]
[1740217775760,1.2600743,2715.2,2714.8,0.0410883]
[1740217776155,1.2600743,2715.2,2714.5,3.68383]
[1740217776156,1.2600743,2715.2,2714.9,0.0410883]
[1740217776456,1.2600743,2715.2,2714.7,3.68362]
[1740217776658,1.2600743,2715.2,2715.0,0.0410883]
[1740217776963,0.49429143,2715.1,2714.7,3.68362]
[1740217777125,1.2600743,2715.2,2714.7,3.68362]
[1740217777457,1.2600743,2715.2,2714.8,0.0502]
[1740217777458,0.7702,2715.2,2714.8,0.0502]
[1740217778462,0.7702,2715.2,2714.9,3.68336]
[1740217778659,0.7702,2715.2,2714.8,0.0502]
[1740217778827,0.7702,2715.2,2714.8,3.73363]
[1740217780735,0.7702,2715.2,2714.8,0.0502]
[1740217780938,4.45317,2715.2,2714.8,0.0502]
[1740217781140,0.7702,2715.2,2714.8,0.0502]
[1740217781749,4.45317,2715.2,2714.8,0.0502]
[1740217781955,4.45317,2715.2,2714.7,3.68353]
[1740217783453,0.7702,2715.2,2714.7,3.68353]
[1740217783641,0.7702,2715.2,2714.9,3.68336]
[1740217784533,0.7702,2715.2,2714.7,3.68352]
[1740217784766,0.7702,2715.2,2714.8,3.68349]
[1740217785891,3.68312,2715.1,2714.7,0.28024708]
[1740217786763,3.6831,2715.1,2714.7,0.28024708]
[1740217786962,0.7702,2715.2,2714.7,0.28024708]
[1740217787168,4.45319,2715.2,2714.7,3.96381708]
[1740217787365,3.68311,2715.1,2714.7,0.28024708]
[1740217787560,3.68328,2715.0,2714.6,0.0502]
[1740217787861,3.68339,2714.9,2714.3,3.68413]
[1740217788054,3.68339,2714.9,2714.5,0.268]
[1740217788568,0.7768,2714.8,2714.4,0.54716552]
[1740217789567,4.46031,2714.8,2714.4,0.54716552]
[1740217790203,0.7768,2714.8,2714.5,0.04014924]
[1740217790344,4.46058,2714.6,2714.5,0.04014924]
[1740217790538,4.46085,2714.4,2714.3,0.27297731]
[1740217791039,4.46085,2714.4,2713.8,0.27297731]
[1740217791040,3.68473,2713.9,2713.8,0.27297731]
[1740217791245,4.46153,2713.9,2713.8,0.27297731]
[1740217792546,3.6851,2713.7,2713.2,0.27297731]
[1740217793081,4.46198,2713.6,2713.2,0.27297731]
[1740217793669,4.46198,2713.6,2713.0,0.3182]
[1740217795947,4.46198,2713.6,2712.9,3.68605]
[1740217796277,8.14725,2713.6,2712.9,3.68605]
[1740217796478,3.68528,2713.5,2712.9,3.68605]
[1740217796682,4.46198,2713.6,2712.9,3.68605]
[1740217797056,3.68529,2713.5,2712.9,3.68605]
[1740217797365,0.7768,2713.6,2713.0,3.68593]
[1740217797547,4.46197,2713.6,2712.9,3.68605]
[1740217798185,4.46197,2713.6,2712.9,7.37205]
[1740217798993,4.46197,2713.6,2712.9,3.686]
[1740217800262,4.46197,2713.6,2712.9,3.68595]
[1740217800595,3.68531,2713.5,2712.9,3.68595]
[1740217801190,3.6853,2713.5,2712.9,3.68595]
[1740217801354,4.46197,2713.6,2712.8,0.54065807]
[1740217801554,0.7561,2713.3,2713.0,3.68585]
[1740217801760,0.7561,2713.5,2713.0,3.68585]
[1740217801966,0.7561,2713.5,2713.1,3.68579]
[1740217803362,0.7561,2713.5,2713.0,3.68595]